[Event "Titled Tuesday Blitz June 13 Late 2023"]
[White "Siddharth, Jagadeesh"]
[Black "Koutlas, Nikolaos"]
[WhiteFideId "5818320"]
[BlackFideId "25827138"]
[WhiteElo "2303"]
[BlackElo "2215"]
[Result "1-0"]
[Round "5"]
[TimeControl "180+2"]
[Date "2023.06.13"]
[WhiteClock "0:00:33"]
[BlackClock "0:00:35"]
[Board "70"]

1. e4 {[%clk 0:03:00]}  c5 {[%clk 0:02:59]} 2. Nf3 {[%clk 0:02:59]}  Nc6 {[%clk 0:02:59]} 3. Bb5 {[%clk 0:02:35]}  g6 {[%clk 0:02:54]} 4. O-O {[%clk 0:02:31]}  Bg7 {[%clk 0:02:52]} 5. c3 {[%clk 0:02:31]}  Nf6 {[%clk 0:02:51]} 6. Re1 {[%clk 0:02:31]}  O-O {[%clk 0:02:51]} 7. d4 {[%clk 0:02:31]}  d5 {[%clk 0:02:50]} 8. e5 {[%clk 0:02:32]}  Ne4 {[%clk 0:02:50]} 9. Be3 {[%clk 0:02:32]}  cxd4 {[%clk 0:02:48]} 10. cxd4 {[%clk 0:02:33]}  Bd7 {[%clk 0:02:45]} 11. Bxc6 {[%clk 0:02:22]}  Bxc6 {[%clk 0:02:41]} 12. Nfd2 {[%clk 0:02:22]}  f6 {[%clk 0:02:37]} 13. Nxe4 {[%clk 0:02:19]}  dxe4 {[%clk 0:02:38]} 14. Nc3 {[%clk 0:02:20]}  fxe5 {[%clk 0:02:37]} 15. d5 {[%clk 0:02:20]}  Bd7 {[%clk 0:02:35]} 16. Nxe4 {[%clk 0:02:19]}  Rc8 {[%clk 0:02:35]} 17. Qb3 {[%clk 0:02:17]}  b6 {[%clk 0:02:33]} 18. Bg5 {[%clk 0:02:16]}  Bf6 {[%clk 0:02:29]} 19. d6+ {[%clk 0:02:03]}  Kg7 {[%clk 0:02:26]} 20. dxe7 {[%clk 0:01:53]}  Bxe7 {[%clk 0:02:23]} 21. Rad1 {[%clk 0:01:52]}  Bxg5 {[%clk 0:02:19]} 22. Nxg5 {[%clk 0:01:53]}  Qxg5 {[%clk 0:02:18]} 23. Rxd7+ {[%clk 0:01:52]}  Kh8 {[%clk 0:02:19]} 24. Qh3 {[%clk 0:01:44]}  h5 {[%clk 0:02:16]} 25. Rxa7 {[%clk 0:01:42]}  Qd2 {[%clk 0:02:14]} 26. Qe3 {[%clk 0:01:37]}  Qxe3 {[%clk 0:02:07]} 27. fxe3 {[%clk 0:01:38]}  Rc2 {[%clk 0:02:07]} 28. Rd1 {[%clk 0:01:37]}  Rxb2 {[%clk 0:02:03]} 29. h4 {[%clk 0:01:36]}  Rc8 {[%clk 0:01:44]} 30. Rdd7 {[%clk 0:01:30]}  Re2 {[%clk 0:01:42]} 31. Rh7+ {[%clk 0:01:18]}  Kg8 {[%clk 0:01:41]} 32. Rag7+ {[%clk 0:01:14]}  Kf8 {[%clk 0:01:40]} 33. Rf7+ {[%clk 0:01:12]}  Kg8 {[%clk 0:01:38]} 34. Rfg7+ {[%clk 0:01:12]}  Kf8 {[%clk 0:01:39]} 35. Rxg6 {[%clk 0:01:11]}  Rc1+ {[%clk 0:01:30]} 36. Kh2 {[%clk 0:01:10]}  Rc4 {[%clk 0:01:30]} 37. Rxh5 {[%clk 0:01:09]}  Rxe3 {[%clk 0:01:30]} 38. Rxb6 {[%clk 0:01:09]}  Kf7 {[%clk 0:01:27]} 39. Rh7+ {[%clk 0:01:08]}  Kg8 {[%clk 0:01:26]} 40. Rbb7 {[%clk 0:01:06]}  Re2 {[%clk 0:01:21]} 41. Rhg7+ {[%clk 0:01:06]}  Kf8 {[%clk 0:01:19]} 42. Rh7 {[%clk 0:00:59]}  Kg8 {[%clk 0:01:19]} 43. Rbg7+ {[%clk 0:01:00]}  Kf8 {[%clk 0:01:19]} 44. Ra7 {[%clk 0:01:01]}  Kg8 {[%clk 0:01:19]} 45. Rh5 {[%clk 0:00:44]}  Ree4 {[%clk 0:01:14]} 46. g3 {[%clk 0:00:41]}  Re2+ {[%clk 0:01:08]} 47. Kh3 {[%clk 0:00:41]}  e4 {[%clk 0:01:09]} 48. Re5 {[%clk 0:00:41]}  Kf8 {[%clk 0:01:05]} 49. Rd5 {[%clk 0:00:37]}  Rc8 {[%clk 0:00:58]} 50. Rf5+ {[%clk 0:00:35]}  Kg8 {[%clk 0:00:57]} 51. Re5 {[%clk 0:00:34]}  e3 {[%clk 0:00:49]} 52. Ra3 {[%clk 0:00:34]}  Rcc2 {[%clk 0:00:45]} 53. Rexe3 {[%clk 0:00:34]}  Rh2+ {[%clk 0:00:44]} 54. Kg4 {[%clk 0:00:34]}  Rc4+ {[%clk 0:00:44]} 55. Kf3 {[%clk 0:00:35]}  Rcc2 {[%clk 0:00:41]} 56. Ra7 {[%clk 0:00:34]}  Kf8 {[%clk 0:00:40]} 57. Rd3 {[%clk 0:00:32]}  Rhf2+ {[%clk 0:00:39]} 58. Kg4 {[%clk 0:00:32]}  Ke8 {[%clk 0:00:38]} 59. Re3+ {[%clk 0:00:31]}  Kf8 {[%clk 0:00:38]} 60. Rf3+ {[%clk 0:00:32]}  Rxf3 {[%clk 0:00:35]} 61. Kxf3 {[%clk 0:00:33]} 1-0


[Site "https://www.chess.com"]

[Event "Titled Tuesday Blitz June 13 Late 2023"]
[White "Papasimakopoulos, Alexandros"]
[Black "Santos Flores, Alberto"]
[WhiteFideId "4244125"]
[BlackFideId "3601234"]
[WhiteElo "2359"]
[BlackElo "2235"]
[Result "1-0"]
[Round "5"]
[TimeControl "180+2"]
[Date "2023.06.13"]
[WhiteClock "0:00:15"]
[BlackClock "0:00:02"]
[Board "71"]

1. d4 {[%clk 0:03:00]}  d5 {[%clk 0:02:59]} 2. c4 {[%clk 0:02:56]}  c6 {[%clk 0:03:00]} 3. cxd5 {[%clk 0:02:55]}  cxd5 {[%clk 0:03:00]} 4. Bf4 {[%clk 0:02:56]}  Nc6 {[%clk 0:02:59]} 5. e3 {[%clk 0:02:56]}  Nf6 {[%clk 0:02:59]} 6. Nc3 {[%clk 0:02:57]}  Bf5 {[%clk 0:02:59]} 7. Qb3 {[%clk 0:02:57]}  Na5 {[%clk 0:02:59]} 8. Qa4+ {[%clk 0:02:57]}  Bd7 {[%clk 0:03:00]} 9. Qc2 {[%clk 0:02:58]}  e6 {[%clk 0:03:00]} 10. Nf3 {[%clk 0:02:58]}  Rc8 {[%clk 0:03:01]} 11. Bd3 {[%clk 0:02:58]}  Be7 {[%clk 0:03:00]} 12. h3 {[%clk 0:02:58]}  b5 {[%clk 0:03:00]} 13. a3 {[%clk 0:02:57]}  h6 {[%clk 0:02:59]} 14. O-O {[%clk 0:02:48]}  O-O {[%clk 0:02:57]} 15. Ne5 {[%clk 0:02:47]}  Nc4 {[%clk 0:02:57]} 16. Qe2 {[%clk 0:02:47]}  a6 {[%clk 0:02:52]} 17. a4 {[%clk 0:02:47]}  Be8 {[%clk 0:02:33]} 18. axb5 {[%clk 0:02:45]}  Bxb5 {[%clk 0:02:29]} 19. Nxb5 {[%clk 0:02:43]}  axb5 {[%clk 0:02:29]} 20. b3 {[%clk 0:02:41]}  Nd6 {[%clk 0:02:29]} 21. Bxb5 {[%clk 0:02:35]}  Qb6 {[%clk 0:02:26]} 22. Ba4 {[%clk 0:02:14]}  Nde4 {[%clk 0:02:24]} 23. Rfc1 {[%clk 0:02:04]}  Qb7 {[%clk 0:01:59]} 24. Qb5 {[%clk 0:01:58]}  Rb8 {[%clk 0:01:52]} 25. Qxb7 {[%clk 0:01:56]}  Rxb7 {[%clk 0:01:53]} 26. Rc2 {[%clk 0:01:49]}  Ra8 {[%clk 0:01:19]} 27. Rac1 {[%clk 0:01:46]}  Ba3 {[%clk 0:01:12]} 28. Rc8+ {[%clk 0:01:44]}  Rxc8 {[%clk 0:01:12]} 29. Rxc8+ {[%clk 0:01:45]}  Kh7 {[%clk 0:01:12]} 30. f3 {[%clk 0:01:38]}  Nd2 {[%clk 0:01:10]} 31. Rc3 {[%clk 0:01:25]}  g5 {[%clk 0:01:06]} 32. Bg3 {[%clk 0:01:21]}  Bb4 {[%clk 0:01:02]} 33. Rc2 {[%clk 0:01:17]}  Ba5 {[%clk 0:00:54]} 34. Nc6 {[%clk 0:01:16]}  Nxb3 {[%clk 0:00:43]} 35. Bxb3 {[%clk 0:01:14]}  Rxb3 {[%clk 0:00:44]} 36. Nxa5 {[%clk 0:01:13]}  Rxe3 {[%clk 0:00:44]} 37. Nc6 {[%clk 0:01:10]}  Nh5 {[%clk 0:00:40]} 38. Bf2 {[%clk 0:01:07]}  Rd3 {[%clk 0:00:39]} 39. Rc1 {[%clk 0:01:01]}  Kg7 {[%clk 0:00:35]} 40. Ne5 {[%clk 0:01:00]}  Rd2 {[%clk 0:00:35]} 41. g3 {[%clk 0:00:48]}  f6 {[%clk 0:00:32]} 42. Rc7+ {[%clk 0:00:46]}  Kg8 {[%clk 0:00:32]} 43. Nf7 {[%clk 0:00:44]}  Ng7 {[%clk 0:00:26]} 44. Nxh6+ {[%clk 0:00:43]}  Kh7 {[%clk 0:00:26]} 45. Ng4 {[%clk 0:00:40]}  Kg6 {[%clk 0:00:27]} 46. Rc6 {[%clk 0:00:39]}  Rd1+ {[%clk 0:00:20]} 47. Kg2 {[%clk 0:00:39]}  Rd2 {[%clk 0:00:21]} 48. Kf1 {[%clk 0:00:37]}  Ra2 {[%clk 0:00:19]} 49. Ne3 {[%clk 0:00:30]}  Ra1+ {[%clk 0:00:18]} 50. Kg2 {[%clk 0:00:30]}  Ra2 {[%clk 0:00:18]} 51. Nc2 {[%clk 0:00:30]}  Nf5 {[%clk 0:00:15]} 52. g4 {[%clk 0:00:29]}  Ng7 {[%clk 0:00:13]} 53. Nb4 {[%clk 0:00:27]}  Rb2 {[%clk 0:00:12]} 54. Na6 {[%clk 0:00:27]}  Kf7 {[%clk 0:00:10]} 55. Nc5 {[%clk 0:00:24]}  Rd2 {[%clk 0:00:09]} 56. Rc7+ {[%clk 0:00:20]}  Kf8 {[%clk 0:00:09]} 57. Kf1 {[%clk 0:00:19]}  Rd1+ {[%clk 0:00:08]} 58. Ke2 {[%clk 0:00:19]}  Rh1 {[%clk 0:00:08]} 59. Bg3 {[%clk 0:00:16]}  Rxh3 {[%clk 0:00:07]} 60. Bd6+ {[%clk 0:00:17]}  Kg8 {[%clk 0:00:07]} 61. Be7 {[%clk 0:00:17]}  Kf7 {[%clk 0:00:06]} 62. Bd8+ {[%clk 0:00:17]}  Kg6 {[%clk 0:00:05]} 63. Re7 {[%clk 0:00:13]}  Rh2+ {[%clk 0:00:05]} 64. Ke3 {[%clk 0:00:13]}  f5 {[%clk 0:00:04]} 65. Nxe6 {[%clk 0:00:13]}  f4+ {[%clk 0:00:04]} 66. Kd3 {[%clk 0:00:11]}  Nxe6 {[%clk 0:00:05]} 67. Rxe6+ {[%clk 0:00:11]}  Kf7 {[%clk 0:00:06]} 68. Re2 {[%clk 0:00:09]}  Rh3 {[%clk 0:00:05]} 69. Rf2 {[%clk 0:00:09]}  Kg6 {[%clk 0:00:06]} 70. Ke2 {[%clk 0:00:09]}  Rh1 {[%clk 0:00:06]} 71. Bc7 {[%clk 0:00:08]}  Ra1 {[%clk 0:00:06]} 72. Be5 {[%clk 0:00:09]}  Ra2+ {[%clk 0:00:05]} 73. Kf1 {[%clk 0:00:09]}  Ra3 {[%clk 0:00:05]} 74. Kg2 {[%clk 0:00:09]}  Rd3 {[%clk 0:00:05]} 75. Rb2 {[%clk 0:00:09]}  Kf7 {[%clk 0:00:04]} 76. Kf2 {[%clk 0:00:09]}  Rc3 {[%clk 0:00:01]} 77. Rb7+ {[%clk 0:00:09]}  Ke6 {[%clk 0:00:01]} 78. Rb6+ {[%clk 0:00:10]}  Kf7 {[%clk 0:00:01]} 79. Rf6+ {[%clk 0:00:10]}  Ke7 {[%clk 0:00:02]} 80. Rg6 {[%clk 0:00:10]}  Rc2+ {[%clk 0:00:02]} 81. Ke1 {[%clk 0:00:11]}  Rc3 {[%clk 0:00:02]} 82. Ke2 {[%clk 0:00:11]}  Rc2+ {[%clk 0:00:03]} 83. Kd3 {[%clk 0:00:12]}  Rf2 {[%clk 0:00:03]} 84. Rxg5 {[%clk 0:00:12]}  Rxf3+ {[%clk 0:00:04]} 85. Ke2 {[%clk 0:00:13]}  Re3+ {[%clk 0:00:04]} 86. Kf2 {[%clk 0:00:14]}  Re4 {[%clk 0:00:05]} 87. Kf3 {[%clk 0:00:13]}  Ke6 {[%clk 0:00:05]} 88. Rg6+ {[%clk 0:00:13]}  Kf7 {[%clk 0:00:05]} 89. Rf6+ {[%clk 0:00:13]}  Ke7 {[%clk 0:00:06]} 90. Rxf4 {[%clk 0:00:14]}  Re1 {[%clk 0:00:07]} 91. g5 {[%clk 0:00:15]}  Rf1+ {[%clk 0:00:07]} 92. Kg4 {[%clk 0:00:15]}  Ke6 {[%clk 0:00:02]} 93. Rxf1 {[%clk 0:00:15]} 1-0


[Site "https://www.chess.com"]

[Event "Titled Tuesday Blitz June 13 Late 2023"]
[White "Fisher_TheGalactic"]
[Black "Rios Escobar, Adan"]
[BlackFideId "3403645"]
[WhiteElo "2697"]
[BlackElo "2485"]
[Result "0-1"]
[Round "5"]
[TimeControl "180+2"]
[Date "2023.06.13"]
[WhiteClock "0:00:00"]
[BlackClock "0:00:07"]
[Board "73"]

1. e4 {[%clk 0:03:00]}  c5 {[%clk 0:02:56]} 2. Nf3 {[%clk 0:03:00]}  d6 {[%clk 0:02:56]} 3. Bc4 {[%clk 0:02:59]}  Nf6 {[%clk 0:02:42]} 4. e5 {[%clk 0:02:52]}  dxe5 {[%clk 0:02:41]} 5. Nxe5 {[%clk 0:02:52]}  e6 {[%clk 0:02:41]} 6. O-O {[%clk 0:02:51]}  Bd6 {[%clk 0:02:38]} 7. f4 {[%clk 0:02:46]}  Nbd7 {[%clk 0:02:25]} 8. Qe2 {[%clk 0:02:38]}  O-O {[%clk 0:02:18]} 9. d3 {[%clk 0:02:37]}  Nd5 {[%clk 0:02:02]} 10. g3 {[%clk 0:02:19]}  Qc7 {[%clk 0:02:00]} 11. Nxd7 {[%clk 0:02:15]}  Bxd7 {[%clk 0:01:59]} 12. Nd2 {[%clk 0:02:16]}  b5 {[%clk 0:01:56]} 13. Bb3 {[%clk 0:02:15]}  Bc6 {[%clk 0:01:20]} 14. c4 {[%clk 0:02:06]}  Nf6 {[%clk 0:01:04]} 15. Ne4 {[%clk 0:02:04]}  Be7 {[%clk 0:00:59]} 16. Bd2 {[%clk 0:01:54]}  Rad8 {[%clk 0:00:58]} 17. Rad1 {[%clk 0:01:50]}  a5 {[%clk 0:00:44]} 18. cxb5 {[%clk 0:01:48]}  Bxb5 {[%clk 0:00:42]} 19. Bc4 {[%clk 0:01:48]}  Bc6 {[%clk 0:00:36]} 20. Bc3 {[%clk 0:01:38]}  Nd5 {[%clk 0:00:36]} 21. Be5 {[%clk 0:01:35]}  Qb7 {[%clk 0:00:36]} 22. b3 {[%clk 0:01:28]}  f6 {[%clk 0:00:34]} 23. Ba1 {[%clk 0:01:24]}  Rfe8 {[%clk 0:00:32]} 24. Nc3 {[%clk 0:01:19]}  Bf8 {[%clk 0:00:29]} 25. Ne4 {[%clk 0:01:10]}  Kh8 {[%clk 0:00:28]} 26. Rfe1 {[%clk 0:01:09]}  Nb4 {[%clk 0:00:21]} 27. a3 {[%clk 0:00:49]}  Nd5 {[%clk 0:00:21]} 28. Qh5 {[%clk 0:00:47]}  Nb6 {[%clk 0:00:19]} 29. Nxf6 {[%clk 0:00:37]}  gxf6 {[%clk 0:00:15]} 30. Bxe6 {[%clk 0:00:37]}  Bg7 {[%clk 0:00:14]} 31. Bf5 {[%clk 0:00:37]}  h6 {[%clk 0:00:02]} 32. Qg6 {[%clk 0:00:36]}  Kg8 {[%clk 0:00:02]} 33. Bxf6 {[%clk 0:00:31]}  Qf7 {[%clk 0:00:01]} 34. Qh7+ {[%clk 0:00:08]}  Kf8 {[%clk 0:00:02]} 35. Bxd8 {[%clk 0:00:08]}  Rxd8 {[%clk 0:00:03]} 36. Be6 {[%clk 0:00:04]}  Bd4+ {[%clk 0:00:03]} 37. Kf1 {[%clk 0:00:03]}  Qxh7 {[%clk 0:00:04]} 38. Bg4 {[%clk 0:00:02]}  Qg7 {[%clk 0:00:04]} 39. Be2 {[%clk 0:00:02]}  Nd5 {[%clk 0:00:05]} 40. Bf3 {[%clk 0:00:02]}  Ne3+ {[%clk 0:00:06]} 41. Rxe3 {[%clk 0:00:03]}  Bxe3 {[%clk 0:00:07]} 42. Bxc6 {[%clk 0:00:03]}  Bd4 {[%clk 0:00:07]} 43. Bf3 {[%clk 0:00:03]}  Qe7 {[%clk 0:00:07]} 44. Kg2 {[%clk 0:00:03]}  Qe3 {[%clk 0:00:08]} 45. Rf1 {[%clk 0:00:04]}  Qd2+ {[%clk 0:00:07]} 46. Kh3 {[%clk 0:00:04]}  Qxd3 {[%clk 0:00:08]} 47. Re1 {[%clk 0:00:03]}  Qf5+ {[%clk 0:00:08]} 48. Bg4 {[%clk 0:00:00]}  Qc2 {[%clk 0:00:07]} 0-1


[Site "https://www.chess.com"]

[Event "Titled Tuesday Blitz June 13 Late 2023"]
[White "Zaitsev, Alexander"]
[Black "Kleiman, Jake"]
[WhiteFideId "4164490"]
[BlackFideId "2020041"]
[WhiteElo "2373"]
[BlackElo "2646"]
[Result "0-1"]
[Round "5"]
[TimeControl "180+2"]
[Date "2023.06.13"]
[WhiteClock "0:00:00"]
[BlackClock "0:00:17"]
[Board "76"]

1. e4 {[%clk 0:02:53]}  e5 {[%clk 0:02:59]} 2. Nc3 {[%clk 0:02:53]}  Nf6 {[%clk 0:02:59]} 3. Bc4 {[%clk 0:02:54]}  Nc6 {[%clk 0:02:58]} 4. d3 {[%clk 0:02:54]}  Na5 {[%clk 0:02:57]} 5. Qf3 {[%clk 0:02:53]}  Be7 {[%clk 0:02:56]} 6. Nge2 {[%clk 0:02:47]}  O-O {[%clk 0:02:55]} 7. O-O {[%clk 0:02:43]}  d6 {[%clk 0:02:55]} 8. h3 {[%clk 0:02:43]}  c6 {[%clk 0:02:55]} 9. a4 {[%clk 0:02:35]}  Nxc4 {[%clk 0:02:54]} 10. dxc4 {[%clk 0:02:36]}  Be6 {[%clk 0:02:53]} 11. b3 {[%clk 0:02:36]}  Nd7 {[%clk 0:02:50]} 12. Ng3 {[%clk 0:02:31]}  g6 {[%clk 0:02:49]} 13. Nf5 {[%clk 0:02:26]}  Nc5 {[%clk 0:02:39]} 14. Bh6 {[%clk 0:02:11]}  Re8 {[%clk 0:02:30]} 15. Rad1 {[%clk 0:01:57]}  Qc7 {[%clk 0:02:15]} 16. h4 {[%clk 0:01:30]}  f6 {[%clk 0:01:48]} 17. Rd2 {[%clk 0:01:15]}  Kh8 {[%clk 0:01:21]} 18. Qg3 {[%clk 0:00:56]}  Nxe4 {[%clk 0:01:08]} 19. Bg7+ {[%clk 0:00:46]}  Kg8 {[%clk 0:01:08]} 20. Nxe4 {[%clk 0:00:46]}  Bxf5 {[%clk 0:01:04]} 21. Nxf6+ {[%clk 0:00:34]}  Bxf6 {[%clk 0:01:04]} 22. Bxf6 {[%clk 0:00:34]}  h6 {[%clk 0:01:00]} 23. Rfd1 {[%clk 0:00:34]}  Re6 {[%clk 0:01:00]} 24. c5 {[%clk 0:00:22]}  d5 {[%clk 0:00:53]} 25. Re1 {[%clk 0:00:21]}  Rxf6 {[%clk 0:00:45]} 26. Rxe5 {[%clk 0:00:21]}  Raf8 {[%clk 0:00:42]} 27. Rde2 {[%clk 0:00:21]}  Qg7 {[%clk 0:00:29]} 28. f3 {[%clk 0:00:21]}  R6f7 {[%clk 0:00:28]} 29. c3 {[%clk 0:00:18]}  h5 {[%clk 0:00:26]} 30. Qg5 {[%clk 0:00:18]}  Qf6 {[%clk 0:00:26]} 31. Qg3 {[%clk 0:00:18]}  Bc8 {[%clk 0:00:25]} 32. Rg5 {[%clk 0:00:16]}  Kh7 {[%clk 0:00:26]} 33. Qf2 {[%clk 0:00:15]}  Bf5 {[%clk 0:00:25]} 34. Qg3 {[%clk 0:00:14]}  Qxc3 {[%clk 0:00:25]} 35. Qd6 {[%clk 0:00:10]}  Qd4+ {[%clk 0:00:24]} 36. Rf2 {[%clk 0:00:04]}  Qxh4 {[%clk 0:00:23]} 37. Rg3 {[%clk 0:00:01]}  Qe7 {[%clk 0:00:21]} 38. Qf4 {[%clk 0:00:01]}  Qe6 {[%clk 0:00:18]} 39. Qd4 {[%clk 0:00:02]}  Re7 {[%clk 0:00:18]} 40. Rg5 {[%clk 0:00:02]}  Qe1+ {[%clk 0:00:17]} 41. Kh2 {[%clk 0:00:02]}  Qe3 {[%clk 0:00:17]} 42. Qd1 {[%clk 0:00:00]}  Qxg5 {[%clk 0:00:17]} 0-1


[Site "https://www.chess.com"]

[Event "Titled Tuesday Blitz June 13 Late 2023"]
[White "Sieciechowicz, Marcin"]
[Black "krucki03"]
[WhiteFideId "1130170"]
[WhiteElo "2301"]
[BlackElo "2469"]
[Result "1-0"]
[Round "5"]
[TimeControl "180+2"]
[Date "2023.06.13"]
[WhiteClock "0:01:15"]
[BlackClock "0:00:03"]
[Board "77"]

1. d4 {[%clk 0:03:00]}  Nf6 {[%clk 0:02:59]} 2. Bf4 {[%clk 0:03:01]}  g6 {[%clk 0:02:52]} 3. e3 {[%clk 0:03:01]}  Bg7 {[%clk 0:02:52]} 4. Nf3 {[%clk 0:03:01]}  O-O {[%clk 0:02:52]} 5. Be2 {[%clk 0:03:02]}  d6 {[%clk 0:02:53]} 6. O-O {[%clk 0:03:02]}  Nbd7 {[%clk 0:02:54]} 7. h3 {[%clk 0:03:01]}  Re8 {[%clk 0:02:54]} 8. c3 {[%clk 0:03:01]}  e5 {[%clk 0:02:54]} 9. Bh2 {[%clk 0:03:01]}  h6 {[%clk 0:02:52]} 10. Nbd2 {[%clk 0:03:01]}  c6 {[%clk 0:02:50]} 11. Nc4 {[%clk 0:03:00]}  e4 {[%clk 0:02:06]} 12. Nfd2 {[%clk 0:02:45]}  d5 {[%clk 0:02:07]} 13. Nd6 {[%clk 0:02:44]}  Rf8 {[%clk 0:02:06]} 14. c4 {[%clk 0:02:44]}  Ne8 {[%clk 0:02:02]} 15. cxd5 {[%clk 0:02:38]}  cxd5 {[%clk 0:02:00]} 16. Rc1 {[%clk 0:02:28]}  Nb6 {[%clk 0:01:57]} 17. Nxc8 {[%clk 0:02:23]}  Rxc8 {[%clk 0:01:57]} 18. Rxc8 {[%clk 0:02:20]}  Qxc8 {[%clk 0:01:58]} 19. Qb3 {[%clk 0:02:20]}  Nf6 {[%clk 0:01:49]} 20. a4 {[%clk 0:02:18]}  Rd8 {[%clk 0:01:38]} 21. Bb5 {[%clk 0:02:02]}  Nbd7 {[%clk 0:01:12]} 22. Nb1 {[%clk 0:02:01]}  Nf8 {[%clk 0:01:02]} 23. Nc3 {[%clk 0:02:01]}  a6 {[%clk 0:00:59]} 24. Be2 {[%clk 0:02:00]}  Ne6 {[%clk 0:00:59]} 25. Rc1 {[%clk 0:01:59]}  Bf8 {[%clk 0:00:58]} 26. Be5 {[%clk 0:01:52]}  Bg7 {[%clk 0:00:31]} 27. a5 {[%clk 0:01:52]}  Ne8 {[%clk 0:00:28]} 28. Bh2 {[%clk 0:01:49]}  f5 {[%clk 0:00:20]} 29. Rc2 {[%clk 0:01:48]}  Qd7 {[%clk 0:00:19]} 30. Na4 {[%clk 0:01:39]}  Kh7 {[%clk 0:00:18]} 31. Nc5 {[%clk 0:01:35]}  Nxc5 {[%clk 0:00:18]} 32. Rxc5 {[%clk 0:01:35]}  Bf8 {[%clk 0:00:18]} 33. Rc2 {[%clk 0:01:30]}  Be7 {[%clk 0:00:07]} 34. Qb6 {[%clk 0:01:29]}  Rc8 {[%clk 0:00:05]} 35. Rxc8 {[%clk 0:01:21]}  Qxc8 {[%clk 0:00:06]} 36. Be5 {[%clk 0:01:21]}  Qd7 {[%clk 0:00:05]} 37. b4 {[%clk 0:01:20]}  Bd6 {[%clk 0:00:05]} 38. b5 {[%clk 0:01:19]}  Bxe5 {[%clk 0:00:05]} 39. dxe5 {[%clk 0:01:20]}  axb5 {[%clk 0:00:02]} 40. Bxb5 {[%clk 0:01:20]}  Qe7 {[%clk 0:00:02]} 41. Bxe8 {[%clk 0:01:18]}  Qxe8 {[%clk 0:00:03]} 42. Qxb7+ {[%clk 0:01:19]}  Kh8 {[%clk 0:00:04]} 43. a6 {[%clk 0:01:14]}  Qxe5 {[%clk 0:00:04]} 44. a7 {[%clk 0:01:14]}  Qa1+ {[%clk 0:00:04]} 45. Kh2 {[%clk 0:01:14]}  Qe5+ {[%clk 0:00:03]} 46. g3 {[%clk 0:01:15]} 1-0


[Site "https://www.chess.com"]

[Event "Titled Tuesday Blitz June 13 Late 2023"]
[White "ArchibaldCerveza29"]
[Black "Hajiyev, Kanan"]
[BlackFideId "13404148"]
[WhiteElo "2459"]
[BlackElo "2115"]
[Result "1-0"]
[Round "5"]
[TimeControl "180+2"]
[Date "2023.06.13"]
[WhiteClock "0:00:39"]
[BlackClock "0:00:06"]
[Board "80"]

1. e4 {[%clk 0:03:00]}  c6 {[%clk 0:03:00]} 2. d4 {[%clk 0:02:59]}  d5 {[%clk 0:03:01]} 3. exd5 {[%clk 0:03:00]}  cxd5 {[%clk 0:03:02]} 4. c4 {[%clk 0:03:00]}  Nf6 {[%clk 0:03:02]} 5. Nc3 {[%clk 0:02:59]}  e6 {[%clk 0:03:02]} 6. Nf3 {[%clk 0:02:59]}  Bb4 {[%clk 0:03:02]} 7. Bd3 {[%clk 0:02:56]}  dxc4 {[%clk 0:03:02]} 8. Bxc4 {[%clk 0:02:57]}  O-O {[%clk 0:03:02]} 9. O-O {[%clk 0:02:58]}  Nc6 {[%clk 0:03:02]} 10. a3 {[%clk 0:02:58]}  Be7 {[%clk 0:03:01]} 11. Re1 {[%clk 0:02:57]}  b6 {[%clk 0:02:53]} 12. Qd3 {[%clk 0:02:55]}  Bb7 {[%clk 0:02:50]} 13. Bb3 {[%clk 0:02:54]}  Rc8 {[%clk 0:02:46]} 14. Bc2 {[%clk 0:02:54]}  Re8 {[%clk 0:02:33]} 15. d5 {[%clk 0:02:49]}  exd5 {[%clk 0:02:27]} 16. Bg5 {[%clk 0:02:48]}  Ne4 {[%clk 0:01:48]} 17. Nxe4 {[%clk 0:02:46]}  dxe4 {[%clk 0:01:40]} 18. Qxe4 {[%clk 0:02:47]}  g6 {[%clk 0:01:34]} 19. Qh4 {[%clk 0:02:46]}  Bxg5 {[%clk 0:01:23]} 20. Nxg5 {[%clk 0:02:44]}  h5 {[%clk 0:01:22]} 21. Bxg6 {[%clk 0:02:05]}  fxg6 {[%clk 0:00:42]} 22. Qc4+ {[%clk 0:02:04]}  Kg7 {[%clk 0:00:42]} 23. Qf7+ {[%clk 0:02:02]}  Kh6 {[%clk 0:00:42]} 24. h4 {[%clk 0:01:35]}  Rxe1+ {[%clk 0:00:41]} 25. Rxe1 {[%clk 0:01:36]}  Qc7 {[%clk 0:00:32]} 26. Qf6 {[%clk 0:01:18]}  Qg7 {[%clk 0:00:24]} 27. Qf4 {[%clk 0:01:18]}  Rf8 {[%clk 0:00:20]} 28. Qe3 {[%clk 0:01:11]}  Qd4 {[%clk 0:00:15]} 29. Qxd4 {[%clk 0:00:40]}  Nxd4 {[%clk 0:00:15]} 30. Re7 {[%clk 0:00:40]}  Rh8 {[%clk 0:00:15]} 31. Nf7+ {[%clk 0:00:40]}  Kg7 {[%clk 0:00:10]} 32. Nxh8+ {[%clk 0:00:40]}  Kxh8 {[%clk 0:00:10]} 33. Rxb7 {[%clk 0:00:41]}  a5 {[%clk 0:00:09]} 34. Rxb6 {[%clk 0:00:41]}  Kg7 {[%clk 0:00:09]} 35. Ra6 {[%clk 0:00:41]}  Nf5 {[%clk 0:00:06]} 36. g3 {[%clk 0:00:39]} 1-0


[Site "https://www.chess.com"]

[Event "Titled Tuesday Blitz June 13 Late 2023"]
[White "Sztokbant, Bernardo Vainzoff"]
[Black "Dobrowolski, Piotr"]
[WhiteFideId "2115956"]
[BlackFideId "1106236"]
[WhiteElo "2222"]
[BlackElo "2305"]
[Result "1-0"]
[Round "5"]
[TimeControl "180+2"]
[Date "2023.06.13"]
[WhiteClock "0:00:36"]
[BlackClock "0:00:00"]
[Board "81"]

1. e4 {[%clk 0:02:59]}  c5 {[%clk 0:02:56]} 2. Nf3 {[%clk 0:02:59]}  e6 {[%clk 0:02:56]} 3. d4 {[%clk 0:03:00]}  cxd4 {[%clk 0:02:56]} 4. Nxd4 {[%clk 0:03:01]}  Nf6 {[%clk 0:02:57]} 5. Nc3 {[%clk 0:03:01]}  Nc6 {[%clk 0:02:57]} 6. Ndb5 {[%clk 0:03:01]}  Bb4 {[%clk 0:02:56]} 7. a3 {[%clk 0:03:00]}  Bxc3+ {[%clk 0:02:56]} 8. Nxc3 {[%clk 0:03:01]}  d5 {[%clk 0:02:57]} 9. exd5 {[%clk 0:03:02]}  exd5 {[%clk 0:02:57]} 10. Bd3 {[%clk 0:03:02]}  O-O {[%clk 0:02:56]} 11. O-O {[%clk 0:03:02]}  d4 {[%clk 0:02:57]} 12. Ne2 {[%clk 0:03:02]}  Bg4 {[%clk 0:02:57]} 13. f3 {[%clk 0:03:02]}  Bh5 {[%clk 0:02:57]} 14. Nf4 {[%clk 0:03:03]}  Bg6 {[%clk 0:02:57]} 15. Nxg6 {[%clk 0:03:03]}  hxg6 {[%clk 0:02:57]} 16. Qe1 {[%clk 0:03:01]}  Re8 {[%clk 0:02:54]} 17. Qh4 {[%clk 0:03:01]}  Ne5 {[%clk 0:02:45]} 18. Bg5 {[%clk 0:02:53]}  Nxd3 {[%clk 0:02:44]} 19. cxd3 {[%clk 0:02:54]}  Qb6 {[%clk 0:02:28]} 20. Rf2 {[%clk 0:02:52]}  Nd5 {[%clk 0:02:26]} 21. b4 {[%clk 0:02:34]}  f6 {[%clk 0:02:22]} 22. Bd2 {[%clk 0:02:33]}  Rac8 {[%clk 0:02:19]} 23. Rc1 {[%clk 0:02:31]}  Rxc1+ {[%clk 0:02:17]} 24. Bxc1 {[%clk 0:02:32]}  Re1+ {[%clk 0:02:12]} 25. Rf1 {[%clk 0:02:32]}  Rxf1+ {[%clk 0:02:09]} 26. Kxf1 {[%clk 0:02:33]}  Qc6 {[%clk 0:02:08]} 27. Bd2 {[%clk 0:02:24]}  Qb6 {[%clk 0:00:48]} 28. Qe4 {[%clk 0:02:23]}  Nc7 {[%clk 0:00:42]} 29. Qxg6 {[%clk 0:02:18]}  Qa6 {[%clk 0:00:36]} 30. Qe4 {[%clk 0:01:55]}  Ne6 {[%clk 0:00:30]} 31. a4 {[%clk 0:01:47]}  Kf7 {[%clk 0:00:28]} 32. Qd5 {[%clk 0:01:37]}  Qxa4 {[%clk 0:00:24]} 33. Qxb7+ {[%clk 0:01:36]}  Kg6 {[%clk 0:00:24]} 34. Qe4+ {[%clk 0:01:34]}  Kf7 {[%clk 0:00:24]} 35. Ke2 {[%clk 0:01:25]}  Qb5 {[%clk 0:00:25]} 36. Qa8 {[%clk 0:01:20]}  a6 {[%clk 0:00:25]} 37. Qa7+ {[%clk 0:01:20]}  Kg6 {[%clk 0:00:24]} 38. Qe7 {[%clk 0:01:17]}  Qe5+ {[%clk 0:00:21]} 39. Kf2 {[%clk 0:01:12]}  Qf5 {[%clk 0:00:20]} 40. Qe8+ {[%clk 0:01:04]}  Kh7 {[%clk 0:00:21]} 41. Ke2 {[%clk 0:00:56]}  Qe5+ {[%clk 0:00:21]} 42. Kd1 {[%clk 0:00:52]}  Qf5 {[%clk 0:00:19]} 43. Qd7 {[%clk 0:00:43]}  Qe5 {[%clk 0:00:14]} 44. Qc6 {[%clk 0:00:38]}  f5 {[%clk 0:00:00]} 45. Qxa6 {[%clk 0:00:36]} 1-0


[Site "https://www.chess.com"]